[Event "Late-Titled-Tuesday-Blitz-September-19-2023"]
[Site "Chess.com"]
[Date "2023.09.19"]
[Round "9"]
[White "egnfanclub"]
[Black "TEREZANA"]
[Result "1-0"]
[WhiteElo "2381"]
[BlackElo "2473"]
[TimeControl "180+1"]
[EndTime "15:41:51 PDT"]
[Termination "egnfanclub won by resignation"]

1. e4 {[%clk 0:03:00.9]} 1... c6 {[%clk 0:02:59.8]} 2. d4 {[%clk 0:03:00.5]}
2... d5 {[%clk 0:03:00.7]} 3. exd5 {[%clk 0:03:01.3]} 3... cxd5 {[%clk
0:03:01.1]} 4. c4 {[%clk 0:03:02.2]} 4... Nf6 {[%clk 0:03:01]} 5. Nc3 {[%clk
0:03:02.8]} 5... Nc6 {[%clk 0:03:01.5]} 6. Nf3 {[%clk 0:03:03.2]} 6... Be6
{[%clk 0:03:01.9]} 7. c5 {[%clk 0:03:03.2]} 7... g6 {[%clk 0:03:01.6]} 8. Bb5
{[%clk 0:03:03.1]} 8... Bg7 {[%clk 0:03:01.8]} 9. Ne5 {[%clk 0:03:03.2]} 9...
Bd7 {[%clk 0:02:55.2]} 10. O-O {[%clk 0:02:48.9]} 10... O-O {[%clk 0:02:52.6]}
11. Nxd7 {[%clk 0:02:37.2]} 11... Qxd7 {[%clk 0:02:53.5]} 12. Re1 {[%clk
0:02:24]} 12... e6 {[%clk 0:02:52.5]} 13. Bf4 {[%clk 0:02:19.4]} 13... Nh5
{[%clk 0:02:45.2]} 14. Bd6 {[%clk 0:02:13.3]} 14... Rfe8 {[%clk 0:02:36.6]} 15.
a3 {[%clk 0:02:04.2]} 15... Rad8 {[%clk 0:02:30.5]} 16. Bxc6 {[%clk 0:01:45.6]}
16... Qxc6 {[%clk 0:02:25.4]} 17. b4 {[%clk 0:01:45.7]} 17... Rxd6 {[%clk
0:02:18.3]} 18. cxd6 {[%clk 0:01:31.9]} 18... Qxc3 {[%clk 0:02:18.1]} 19. d7
{[%clk 0:01:32.5]} 19... Rd8 {[%clk 0:02:10.8]} 20. Rc1 {[%clk 0:01:31.5]} 20...
Qxd4 {[%clk 0:02:11.1]} 21. Rc8 {[%clk 0:01:30.2]} 21... Qf6 {[%clk 0:02:11]}
22. Qc2 {[%clk 0:01:21.5]} 22... Bf8 {[%clk 0:02:04.2]} 23. Rxd8 {[%clk
0:01:08.6]} 23... Qxd8 {[%clk 0:02:02.7]} 24. Qc8 {[%clk 0:01:09.5]} 24... Be7
{[%clk 0:02:02.5]} 25. Rc1 {[%clk 0:01:09.7]} 25... Kf8 {[%clk 0:02:02]} 26.
Qxb7 {[%clk 0:01:04.5]} 26... Ng7 {[%clk 0:02:02.9]} 27. Rc8 {[%clk 0:01:03.5]}
27... Nf5 {[%clk 0:01:40.4]} 28. Qc7 {[%clk 0:00:56.8]} 1-0

[Event "Late-Titled-Tuesday-Blitz-September-19-2023"]
[Site "Chess.com"]
[Date "2023.09.19"]
[Round "9"]
[White "TatjanaVasilevich"]
[Black "stasOR4ik"]
[Result "1-0"]
[WhiteElo "2560"]
[BlackElo "2435"]
[TimeControl "180+1"]
[EndTime "15:42:24 PDT"]
[Termination "TatjanaVasilevich won by resignation"]

1. Nf3 {[%clk 0:03:00.9]} 1... d5 {[%clk 0:02:57.6]} 2. g3 {[%clk 0:02:59.5]}
2... Nf6 {[%clk 0:02:57.2]} 3. Bg2 {[%clk 0:02:59.9]} 3... c5 {[%clk 0:02:51.1]}
4. b3 {[%clk 0:02:59.8]} 4... Nc6 {[%clk 0:02:51.4]} 5. Bb2 {[%clk 0:03:00.7]}
5... g6 {[%clk 0:02:51.7]} 6. d4 {[%clk 0:02:59.9]} 6... cxd4 {[%clk 0:02:42.8]}
7. Nxd4 {[%clk 0:03:00.8]} 7... Bg7 {[%clk 0:02:42.2]} 8. c4 {[%clk 0:02:58.8]}
8... e5 {[%clk 0:02:37.7]} 9. Nxc6 {[%clk 0:02:57.7]} 9... bxc6 {[%clk 0:02:37]}
10. cxd5 {[%clk 0:02:57.9]} 10... Nxd5 {[%clk 0:02:30.9]} 11. O-O {[%clk
0:02:54.2]} 11... O-O {[%clk 0:02:30.2]} 12. Nc3 {[%clk 0:02:53.8]} 12... Nxc3
{[%clk 0:02:05]} 13. Bxc3 {[%clk 0:02:54.7]} 13... Qb6 {[%clk 0:02:00.4]} 14.
Qc2 {[%clk 0:02:52.9]} 14... Bf5 {[%clk 0:01:59.2]} 15. e4 {[%clk 0:02:51.8]}
15... Bg4 {[%clk 0:01:54.1]} 16. h3 {[%clk 0:02:50.2]} 16... Be6 {[%clk
0:01:53.9]} 17. Kh2 {[%clk 0:02:50]} 17... c5 {[%clk 0:01:46]} 18. f4 {[%clk
0:02:46.1]} 18... exf4 {[%clk 0:01:40.8]} 19. gxf4 {[%clk 0:02:47]} 19... Bxc3
{[%clk 0:01:16.6]} 20. Qxc3 {[%clk 0:02:47.9]} 20... Rad8 {[%clk 0:01:16.2]} 21.
f5 {[%clk 0:02:46.5]} 21... Bc8 {[%clk 0:01:13.9]} 22. f6 {[%clk 0:02:43.4]}
22... Rfe8 {[%clk 0:01:00.9]} 23. Rad1 {[%clk 0:02:36.1]} 23... Rd4 {[%clk
0:00:50.7]} 24. Rxd4 {[%clk 0:02:02.8]} 24... cxd4 {[%clk 0:00:49.7]} 25. Qd2
{[%clk 0:02:03.5]} 25... Bb7 {[%clk 0:00:47.1]} 26. Kh1 {[%clk 0:01:51]} 26...
Re6 {[%clk 0:00:19.3]} 27. Qf4 {[%clk 0:01:49.9]} 27... d3 {[%clk 0:00:15.9]}
28. Qb8+ {[%clk 0:01:47.6]} 1-0

[Event "Late-Titled-Tuesday-Blitz-September-19-2023"]
[Site "Chess.com"]
[Date "2023.09.19"]
[Round "9"]
[White "rdarruda"]
[Black "aNaartjieZA"]
[Result "0-1"]
[WhiteElo "2497"]
[BlackElo "2599"]
[TimeControl "180+1"]
[EndTime "15:42:31 PDT"]
[Termination "aNaartjieZA won by resignation"]

1. d4 {[%clk 0:02:36.9]} 1... Nf6 {[%clk 0:02:59.2]} 2. Nf3 {[%clk 0:02:37.5]}
2... c5 {[%clk 0:02:58.8]} 3. d5 {[%clk 0:02:36.7]} 3... d6 {[%clk 0:02:59]} 4.
Nc3 {[%clk 0:02:36.8]} 4... e5 {[%clk 0:02:59]} 5. dxe6 {[%clk 0:02:35.6]} 5...
Bxe6 {[%clk 0:02:58.7]} 6. e4 {[%clk 0:02:35.9]} 6... Nc6 {[%clk 0:02:58.3]} 7.
Bb5 {[%clk 0:02:34.6]} 7... Be7 {[%clk 0:02:51.9]} 8. O-O {[%clk 0:02:33.4]}
8... O-O {[%clk 0:02:50.7]} 9. Bxc6 {[%clk 0:02:33.5]} 9... bxc6 {[%clk
0:02:50.6]} 10. e5 {[%clk 0:02:34.1]} 10... Nd5 {[%clk 0:02:47]} 11. Ne4 {[%clk
0:02:22.3]} 11... dxe5 {[%clk 0:02:34.7]} 12. Nxe5 {[%clk 0:02:23.2]} 12... Qc7
{[%clk 0:02:34.6]} 13. Nc4 {[%clk 0:02:14.3]} 13... Rad8 {[%clk 0:02:32.9]} 14.
Qe2 {[%clk 0:02:12.2]} 14... Rfe8 {[%clk 0:02:31.4]} 15. Bd2 {[%clk 0:01:57.6]}
15... Nf4 {[%clk 0:02:24.6]} 16. Bxf4 {[%clk 0:01:56.6]} 16... Qxf4 {[%clk
0:02:24.4]} 17. Rfe1 {[%clk 0:01:44.3]} 17... Rd4 {[%clk 0:01:49.8]} 18. Ncd2
{[%clk 0:01:27.1]} 18... f5 {[%clk 0:01:28.2]} 19. Nc3 {[%clk 0:01:13.9]} 19...
Bd6 {[%clk 0:01:26.5]} 20. Nf3 {[%clk 0:01:12.9]} 20... Rb4 {[%clk 0:01:23.3]}
21. Qd2 {[%clk 0:01:09.2]} 21... Qxd2 {[%clk 0:01:19.5]} 22. Nxd2 {[%clk
0:01:10.1]} 22... Rxb2 {[%clk 0:01:16.3]} 23. Rac1 {[%clk 0:01:10.2]} 23... Bf4
{[%clk 0:01:08.2]} 24. Na4 {[%clk 0:00:53.9]} 24... Rxa2 {[%clk 0:00:58.6]} 0-1

[Event "Late-Titled-Tuesday-Blitz-September-19-2023"]
[Site "Chess.com"]
[Date "2023.09.19"]
[Round "9"]
[White "oskariot"]
[Black "Hrant_ChessMood"]
[Result "0-1"]
[WhiteElo "2732"]
[BlackElo "2912"]
[TimeControl "180+1"]
[EndTime "15:43:02 PDT"]
[Termination "Hrant_ChessMood won on time"]

1. e4 {[%clk 0:03:00.9]} 1... c5 {[%clk 0:02:57.3]} 2. Nf3 {[%clk 0:03:00.4]}
2... Nc6 {[%clk 0:02:57.2]} 3. b4 {[%clk 0:02:59.2]} 3... cxb4 {[%clk
0:02:56.4]} 4. d4 {[%clk 0:02:58.8]} 4... d5 {[%clk 0:02:55.9]} 5. exd5 {[%clk
0:02:59.7]} 5... Qxd5 {[%clk 0:02:55.7]} 6. c4 {[%clk 0:03:00.6]} 6... Qd8
{[%clk 0:02:50.6]} 7. d5 {[%clk 0:02:56]} 7... Nb8 {[%clk 0:02:49]} 8. c5 {[%clk
0:02:48.1]} 8... e6 {[%clk 0:02:38]} 9. d6 {[%clk 0:02:34.4]} 9... Nf6 {[%clk
0:02:31.8]} 10. Ne5 {[%clk 0:02:16.1]} 10... Nfd7 {[%clk 0:02:24.8]} 11. Bb5
{[%clk 0:02:13.9]} 11... a6 {[%clk 0:02:20.7]} 12. Ba4 {[%clk 0:01:59.4]} 12...
b5 {[%clk 0:01:57.2]} 13. cxb6 {[%clk 0:01:57]} 13... Bb7 {[%clk 0:01:57.2]} 14.
Be3 {[%clk 0:01:36]} 14... g6 {[%clk 0:01:38.5]} 15. Qd4 {[%clk 0:00:24.4]}
15... f6 {[%clk 0:01:20.7]} 16. Nxd7 {[%clk 0:00:10.7]} 16... Nxd7 {[%clk
0:01:21.6]} 17. Qc4 {[%clk 0:00:03.7]} 17... Kf7 {[%clk 0:01:16.8]} 18. Qc7
{[%clk 0:00:03.6]} 18... Qxc7 {[%clk 0:00:59.8]} 19. dxc7 {[%clk 0:00:04.5]}
19... Nc5 {[%clk 0:01:00.3]} 20. Bxc5 {[%clk 0:00:04.5]} 20... Bxc5 {[%clk
0:01:00.2]} 0-1

[Event "Late-Titled-Tuesday-Blitz-September-19-2023"]
[Site "Chess.com"]
[Date "2023.09.19"]
[Round "9"]
[White "KorolDimitriy75"]
[Black "OYAcosta"]
[Result "1-0"]
[WhiteElo "2365"]
[BlackElo "2176"]
[TimeControl "180+1"]
[EndTime "15:43:13 PDT"]
[Termination "KorolDimitriy75 won by checkmate"]

1. d4 {[%clk 0:03:00.9]} 1... d5 {[%clk 0:02:58.8]} 2. c4 {[%clk 0:03:01.2]}
2... c6 {[%clk 0:02:58.8]} 3. Nc3 {[%clk 0:03:01.7]} 3... Nf6 {[%clk 0:02:58.5]}
4. e3 {[%clk 0:03:02]} 4... a6 {[%clk 0:02:59.1]} 5. Nf3 {[%clk 0:03:02]} 5...
Bf5 {[%clk 0:02:58.9]} 6. Bd3 {[%clk 0:03:01.8]} 6... Bg6 {[%clk 0:02:58.8]} 7.
O-O {[%clk 0:03:00.8]} 7... e6 {[%clk 0:02:59.3]} 8. Qe2 {[%clk 0:02:57]} 8...
Ne4 {[%clk 0:02:57.2]} 9. Ne5 {[%clk 0:02:52.6]} 9... f5 {[%clk 0:02:51.2]} 10.
f3 {[%clk 0:02:44.8]} 10... Nxc3 {[%clk 0:02:49.5]} 11. bxc3 {[%clk 0:02:45.7]}
11... Bd6 {[%clk 0:02:48.8]} 12. f4 {[%clk 0:02:38.9]} 12... Nd7 {[%clk
0:02:47.3]} 13. c5 {[%clk 0:02:20.2]} 13... Bc7 {[%clk 0:02:44.8]} 14. Rb1
{[%clk 0:02:18.9]} 14... Rb8 {[%clk 0:02:43.9]} 15. c4 {[%clk 0:02:05.7]} 15...
O-O {[%clk 0:02:41.6]} 16. Bd2 {[%clk 0:01:46.3]} 16... Be8 {[%clk 0:02:41.2]}
17. cxd5 {[%clk 0:01:31.7]} 17... cxd5 {[%clk 0:02:36.5]} 18. g4 {[%clk
0:00:40.6]} 18... Nxe5 {[%clk 0:02:24.9]} 19. fxe5 {[%clk 0:00:40.2]} 19... Bd7
{[%clk 0:02:20.7]} 20. gxf5 {[%clk 0:00:36.8]} 20... exf5 {[%clk 0:02:20.9]} 21.
Kh1 {[%clk 0:00:36.2]} 21... Be6 {[%clk 0:02:19.2]} 22. Rg1 {[%clk 0:00:29.7]}
22... Qh4 {[%clk 0:02:16.1]} 23. Rbf1 {[%clk 0:00:27.9]} 23... Kh8 {[%clk
0:02:05.4]} 24. Rf4 {[%clk 0:00:24.2]} 24... Qh3 {[%clk 0:02:04.6]} 25. Rf3
{[%clk 0:00:20.6]} 25... Qh5 {[%clk 0:02:04]} 26. Qg2 {[%clk 0:00:19.8]} 26...
Rf7 {[%clk 0:01:58.2]} 27. Rh3 {[%clk 0:00:19.3]} 27... Qg4 {[%clk 0:01:46.5]}
28. Qf1 {[%clk 0:00:16.7]} 28... f4 {[%clk 0:01:28.7]} 29. Rxh7+ {[%clk
0:00:15.1]} 29... Kg8 {[%clk 0:01:28.1]} 30. Rxg4 {[%clk 0:00:14.7]} 30... Bxg4
{[%clk 0:01:28.7]} 31. exf4 {[%clk 0:00:13.5]} 31... b6 {[%clk 0:01:26.6]} 32.
Qg2 {[%clk 0:00:12]} 32... Be6 {[%clk 0:01:23]} 33. f5 {[%clk 0:00:10.8]} 33...
Bc8 {[%clk 0:01:19.4]} 34. f6 {[%clk 0:00:09.9]} 34... bxc5 {[%clk 0:01:15.2]}
35. Rxg7+ {[%clk 0:00:09.7]} 35... Kf8 {[%clk 0:01:15.9]} 36. Rg8# {[%clk
0:00:10]} 1-0

[Event "Late-Titled-Tuesday-Blitz-September-19-2023"]
[Site "Chess.com"]
[Date "2023.09.19"]
[Round "9"]
[White "djano"]
[Black "DvaHrasta"]
[Result "1-0"]
[WhiteElo "2631"]
[BlackElo "2512"]
[TimeControl "180+1"]
[EndTime "15:43:32 PDT"]
[Termination "djano won on time"]

1. d4 {[%clk 0:03:00.9]} 1... Nf6 {[%clk 0:02:59]} 2. Bf4 {[%clk 0:03:01.1]}
2... d5 {[%clk 0:02:57.8]} 3. Nf3 {[%clk 0:03:00.9]} 3... e6 {[%clk 0:02:58.1]}
4. e3 {[%clk 0:03:01.3]} 4... Bd6 {[%clk 0:02:58.1]} 5. Bg3 {[%clk 0:03:01.9]}
5... O-O {[%clk 0:02:58]} 6. Nbd2 {[%clk 0:03:01.1]} 6... b6 {[%clk 0:02:58]} 7.
Ne5 {[%clk 0:02:57]} 7... c5 {[%clk 0:02:48.6]} 8. c3 {[%clk 0:02:55.4]} 8... a5
{[%clk 0:02:44.4]} 9. h4 {[%clk 0:02:49.4]} 9... a4 {[%clk 0:02:41.3]} 10. h5
{[%clk 0:02:47.5]} 10... h6 {[%clk 0:02:38.9]} 11. Bh4 {[%clk 0:02:43.9]} 11...
Be7 {[%clk 0:02:32.2]} 12. Bd3 {[%clk 0:02:39.7]} 12... Ba6 {[%clk 0:02:30.6]}
13. Bc2 {[%clk 0:02:39.6]} 13... Bb5 {[%clk 0:02:27.6]} 14. a3 {[%clk
0:02:36.1]} 14... Nc6 {[%clk 0:02:26.9]} 15. f4 {[%clk 0:02:35.2]} 15... Nxe5
{[%clk 0:02:21.4]} 16. fxe5 {[%clk 0:02:34.8]} 16... Nd7 {[%clk 0:02:14.7]} 17.
Qg4 {[%clk 0:02:21.2]} 17... Bxh4+ {[%clk 0:02:13.1]} 18. Rxh4 {[%clk
0:02:20.4]} 18... f5 {[%clk 0:02:02.1]} 19. exf6 {[%clk 0:02:13.4]} 19... Qxf6
{[%clk 0:02:01.8]} 20. O-O-O {[%clk 0:02:09.8]} 20... e5 {[%clk 0:01:58.4]} 21.
Rh3 {[%clk 0:01:45.1]} 21... e4 {[%clk 0:01:54.4]} 22. c4 {[%clk 0:01:37.7]}
22... cxd4 {[%clk 0:01:34.3]} 23. exd4 {[%clk 0:01:20.6]} 23... dxc4 {[%clk
0:01:16.4]} 24. Qxe4 {[%clk 0:01:12.3]} 24... Bc6 {[%clk 0:00:48]} 25. d5 {[%clk
0:01:02.3]} 25... Nc5 {[%clk 0:00:38.3]} 26. Qh7+ {[%clk 0:01:00.4]} 26... Kf7
{[%clk 0:00:38.4]} 27. dxc6 {[%clk 0:00:54.4]} 27... Nd3+ {[%clk 0:00:26.9]} 28.
Bxd3 {[%clk 0:00:52.2]} 28... cxd3 {[%clk 0:00:21.4]} 29. Rf3 {[%clk 0:00:50.9]}
1-0

[Event "Late-Titled-Tuesday-Blitz-September-19-2023"]
[Site "Chess.com"]
[Date "2023.09.19"]
[Round "9"]
[White "leoduarte"]
[Black "Eloist"]
[Result "1/2-1/2"]
[WhiteElo "2498"]
[BlackElo "2490"]
[TimeControl "180+1"]
[EndTime "15:43:32 PDT"]
[Termination "Game drawn by repetition"]

1. d4 {[%clk 0:03:00.9]} 1... e6 {[%clk 0:02:59.9]} 2. c4 {[%clk 0:03:01.1]}
2... Nf6 {[%clk 0:03:00.1]} 3. Nf3 {[%clk 0:03:01.5]} 3... b6 {[%clk 0:03:00.5]}
4. g3 {[%clk 0:03:01.6]} 4... Bb7 {[%clk 0:03:00.9]} 5. Bg2 {[%clk 0:03:02.1]}
5... Be7 {[%clk 0:03:01.4]} 6. O-O {[%clk 0:03:02.5]} 6... O-O {[%clk
0:03:01.6]} 7. Nc3 {[%clk 0:03:03.1]} 7... Ne4 {[%clk 0:03:01.8]} 8. Qc2 {[%clk
0:03:02.8]} 8... Nxc3 {[%clk 0:03:01.5]} 9. Qxc3 {[%clk 0:03:03.7]} 9... f5
{[%clk 0:03:01.1]} 10. Rd1 {[%clk 0:02:48.1]} 10... Bf6 {[%clk 0:03:00.6]} 11.
Ne5 {[%clk 0:02:37.7]} 11... Bxg2 {[%clk 0:02:59.7]} 12. Kxg2 {[%clk 0:02:38.3]}
12... a5 {[%clk 0:02:25.7]} 13. h4 {[%clk 0:02:28.7]} 13... d6 {[%clk
0:02:24.3]} 14. Qf3 {[%clk 0:02:20.9]} 14... Ra7 {[%clk 0:02:24.1]} 15. Nc6
{[%clk 0:02:20.6]} 15... Nxc6 {[%clk 0:02:23]} 16. Qxc6 {[%clk 0:02:21.5]} 16...
Qa8 {[%clk 0:02:20.6]} 17. Qxa8 {[%clk 0:02:18.7]} 17... Raxa8 {[%clk
0:02:21.5]} 18. Bg5 {[%clk 0:02:14.2]} 18... Rae8 {[%clk 0:02:15.1]} 19. Rd2
{[%clk 0:02:09.1]} 19... e5 {[%clk 0:02:14.5]} 20. dxe5 {[%clk 0:02:09]} 20...
Bxe5 {[%clk 0:02:09.2]} 21. Rad1 {[%clk 0:02:03.9]} 21... f4 {[%clk 0:01:52.3]}
22. e3 {[%clk 0:01:31.8]} 22... fxg3 {[%clk 0:01:26.7]} 23. fxg3 {[%clk
0:01:27.9]} 23... h6 {[%clk 0:01:23.6]} 24. Bf4 {[%clk 0:01:27.7]} 24... Bxf4
{[%clk 0:01:16.3]} 25. exf4 {[%clk 0:01:28.6]} 25... Re4 {[%clk 0:01:13.5]} 26.
Rc2 {[%clk 0:01:22.2]} 26... Rfe8 {[%clk 0:01:10.3]} 27. Rdd2 {[%clk 0:01:22.8]}
27... h5 {[%clk 0:01:05.7]} 28. Kf2 {[%clk 0:01:23]} 28... Kf7 {[%clk
0:01:05.4]} 29. Re2 {[%clk 0:01:23.2]} 29... Kf6 {[%clk 0:01:03.3]} 30. Red2
{[%clk 0:01:17.2]} 30... a4 {[%clk 0:00:42.9]} 31. Rd5 {[%clk 0:01:15.3]} 31...
g6 {[%clk 0:00:40.1]} 32. Rd3 {[%clk 0:01:07.5]} 32... Kf5 {[%clk 0:00:25.8]}
33. Rd5+ {[%clk 0:00:52.1]} 33... Kf6 {[%clk 0:00:25.7]} 34. Rd3 {[%clk
0:00:51.8]} 34... Kf5 {[%clk 0:00:25.5]} 35. Rd5+ {[%clk 0:00:44.5]} 35... Kf6
{[%clk 0:00:25.6]} 1/2-1/2

[Event "Late-Titled-Tuesday-Blitz-September-19-2023"]
[Site "Chess.com"]
[Date "2023.09.19"]
[Round "9"]
[White "whiteglovethief"]
[Black "UK_23"]
[Result "1-0"]
[WhiteElo "2522"]
[BlackElo "2386"]
[TimeControl "180+1"]
[EndTime "15:43:34 PDT"]
[Termination "whiteglovethief won by checkmate"]

1. d4 {[%clk 0:03:00.9]} 1... d5 {[%clk 0:02:59.7]} 2. c4 {[%clk 0:03:01]} 2...
e6 {[%clk 0:03:00.4]} 3. Nf3 {[%clk 0:03:00.2]} 3... Nf6 {[%clk 0:03:01]} 4. g3
{[%clk 0:03:00.4]} 4... dxc4 {[%clk 0:02:54.5]} 5. Bg2 {[%clk 0:03:01.3]} 5...
c5 {[%clk 0:02:54.4]} 6. O-O {[%clk 0:03:00.5]} 6... Nc6 {[%clk 0:02:50.3]} 7.
Na3 {[%clk 0:03:00.8]} 7... cxd4 {[%clk 0:02:47.7]} 8. Nxc4 {[%clk 0:03:00.3]}
8... Be7 {[%clk 0:02:46.9]} 9. b3 {[%clk 0:02:59.9]} 9... O-O {[%clk 0:02:46.5]}
10. Bb2 {[%clk 0:03:00.4]} 10... Nd5 {[%clk 0:02:32.6]} 11. Nxd4 {[%clk
0:02:55.5]} 11... Nxd4 {[%clk 0:02:32.2]} 12. Bxd4 {[%clk 0:02:53.8]} 12... Bd7
{[%clk 0:02:22.6]} 13. Ne5 {[%clk 0:02:39.5]} 13... Bb5 {[%clk 0:02:12.7]} 14.
a4 {[%clk 0:02:31.3]} 14... Be8 {[%clk 0:02:02.8]} 15. Rc1 {[%clk 0:02:27.5]}
15... f6 {[%clk 0:01:56.1]} 16. Nd3 {[%clk 0:02:24.7]} 16... Bc6 {[%clk
0:01:56.7]} 17. Bc5 {[%clk 0:02:21.6]} 17... e5 {[%clk 0:01:51.2]} 18. b4 {[%clk
0:02:13.2]} 18... Bxc5 {[%clk 0:01:39]} 19. Nxc5 {[%clk 0:02:07.3]} 19... Ne7
{[%clk 0:00:25.7]} 20. Nxb7 {[%clk 0:01:51.5]} 20... Bxb7 {[%clk 0:00:17.7]} 21.
Bxb7 {[%clk 0:01:46.2]} 21... Rb8 {[%clk 0:00:17.5]} 22. Qb3+ {[%clk 0:01:43.6]}
22... Kh8 {[%clk 0:00:17.4]} 23. Bg2 {[%clk 0:01:40.7]} 23... Qb6 {[%clk
0:00:15.8]} 24. b5 {[%clk 0:01:38.4]} 24... a6 {[%clk 0:00:15.7]} 25. Qa3 {[%clk
0:01:33.3]} 25... Nf5 {[%clk 0:00:15]} 26. bxa6 {[%clk 0:01:29.5]} 26... Qxa6
{[%clk 0:00:15.1]} 27. e3 {[%clk 0:01:27]} 27... Rfd8 {[%clk 0:00:13]} 28. Rc6
{[%clk 0:01:22.9]} 28... Qa5 {[%clk 0:00:11.5]} 29. Rfc1 {[%clk 0:01:19.6]}
29... Qd2 {[%clk 0:00:07.6]} 30. Be4 {[%clk 0:01:13.5]} 30... Nh6 {[%clk
0:00:06.5]} 31. Qe7 {[%clk 0:01:08.4]} 31... Ng4 {[%clk 0:00:06.1]} 32. R1c2
{[%clk 0:00:56.5]} 32... Rb1+ {[%clk 0:00:05]} 33. Kg2 {[%clk 0:00:56]} 33...
Qe1 {[%clk 0:00:05.4]} 34. Qxd8# {[%clk 0:00:54.2]} 1-0

[Event "Late-Titled-Tuesday-Blitz-September-19-2023"]
[Site "Chess.com"]
[Date "2023.09.19"]
[Round "9"]
[White "Garmendiarov"]
[Black "martinez_95"]
[Result "0-1"]
[WhiteElo "2323"]
[BlackElo "2219"]
[TimeControl "180+1"]
[EndTime "15:43:34 PDT"]
[Termination "martinez_95 won on time"]

1. e4 {[%clk 0:02:57.2]} 1... e6 {[%clk 0:02:48.5]} 2. d4 {[%clk 0:02:56.8]}
2... d5 {[%clk 0:02:47]} 3. Nc3 {[%clk 0:02:57.3]} 3... Nf6 {[%clk 0:02:46.2]}
4. e5 {[%clk 0:02:57.4]} 4... Nfd7 {[%clk 0:02:46.1]} 5. f4 {[%clk 0:02:58.2]}
5... c5 {[%clk 0:02:46.5]} 6. Nf3 {[%clk 0:02:59]} 6... Nc6 {[%clk 0:02:45.5]}
7. Be3 {[%clk 0:02:59.7]} 7... Be7 {[%clk 0:02:41.4]} 8. Bd3 {[%clk 0:02:53.9]}
8... b5 {[%clk 0:02:40.2]} 9. Nxb5 {[%clk 0:02:47.8]} 9... c4 {[%clk 0:02:28.6]}
10. Be2 {[%clk 0:02:46.8]} 10... Rb8 {[%clk 0:02:27.4]} 11. Nc3 {[%clk
0:02:27.9]} 11... Rxb2 {[%clk 0:02:24.3]} 12. O-O {[%clk 0:02:27]} 12... Qa5
{[%clk 0:02:11.3]} 13. Bd2 {[%clk 0:02:22.1]} 13... Bb4 {[%clk 0:02:08]} 14. Nb1
{[%clk 0:01:58.7]} 14... Bxd2 {[%clk 0:02:01.8]} 15. Nbxd2 {[%clk 0:01:53.5]}
15... Qc3 {[%clk 0:02:00.8]} 16. Rc1 {[%clk 0:01:16.8]} 16... Nxd4 {[%clk
0:01:59.3]} 17. Nxd4 {[%clk 0:01:03.7]} 17... Qxd4+ {[%clk 0:01:58.3]} 18. Kh1
{[%clk 0:01:01.2]} 18... O-O {[%clk 0:01:45.9]} 19. Nf3 {[%clk 0:00:54.2]} 19...
Qxf4 {[%clk 0:01:40.9]} 20. Qe1 {[%clk 0:00:44.1]} 20... Nxe5 {[%clk 0:01:35.4]}
21. g3 {[%clk 0:00:14.3]} 21... Qe4 {[%clk 0:01:28.8]} 22. Qc3 {[%clk
0:00:10.1]} 22... Qxe2 {[%clk 0:01:18.2]} 23. Nxe5 {[%clk 0:00:08.1]} 23... d4
{[%clk 0:00:41.6]} 24. Qxb2 {[%clk 0:00:01]} 24... Qxe5 {[%clk 0:00:42]} 0-1

[Event "Late-Titled-Tuesday-Blitz-September-19-2023"]
[Site "Chess.com"]
[Date "2023.09.19"]
[Round "9"]
[White "tgpgoat"]
[Black "KaydenTroffChess"]
[Result "0-1"]
[WhiteElo "2514"]
[BlackElo "2766"]
[TimeControl "180+1"]
[EndTime "15:43:55 PDT"]
[Termination "KaydenTroffChess won by resignation"]

1. d4 {[%clk 0:03:00.9]} 1... Nf6 {[%clk 0:02:59.7]} 2. Nf3 {[%clk 0:02:58.5]}
2... g6 {[%clk 0:02:59.5]} 3. Bg5 {[%clk 0:02:55.9]} 3... Bg7 {[%clk 0:02:59.2]}
4. Nbd2 {[%clk 0:02:55.7]} 4... d5 {[%clk 0:02:58.9]} 5. e3 {[%clk 0:02:55]}
5... O-O {[%clk 0:02:58.6]} 6. Be2 {[%clk 0:02:54]} 6... Nbd7 {[%clk 0:02:57.7]}
7. h3 {[%clk 0:02:52.3]} 7... Re8 {[%clk 0:02:54.1]} 8. Bf4 {[%clk 0:02:52.2]}
8... c5 {[%clk 0:02:25.8]} 9. c3 {[%clk 0:02:50.8]} 9... Ne4 {[%clk 0:01:59.2]}
10. Nxe4 {[%clk 0:02:48.7]} 10... dxe4 {[%clk 0:01:59.2]} 11. Nd2 {[%clk
0:02:48.8]} 11... cxd4 {[%clk 0:01:58.5]} 12. cxd4 {[%clk 0:02:47.7]} 12... e5
{[%clk 0:01:46.2]} 13. dxe5 {[%clk 0:02:47.5]} 13... Nxe5 {[%clk 0:01:46.7]} 14.
Nxe4 {[%clk 0:02:39.9]} 14... Bf5 {[%clk 0:01:30.1]} 15. Qxd8 {[%clk 0:02:00.5]}
15... Rexd8 {[%clk 0:01:21.4]} 16. Nc3 {[%clk 0:02:01.4]} 16... Nd3+ {[%clk
0:01:09.4]} 17. Bxd3 {[%clk 0:01:58.3]} 17... Bxd3 {[%clk 0:01:10]} 18. Rd1
{[%clk 0:01:52.4]} 18... Rac8 {[%clk 0:01:05]} 19. f3 {[%clk 0:01:34.3]} 19...
b5 {[%clk 0:01:03.4]} 20. a3 {[%clk 0:01:25.1]} 20... a5 {[%clk 0:00:55.9]} 21.
Rd2 {[%clk 0:01:16.7]} 21... Rxc3 {[%clk 0:00:32.6]} 22. bxc3 {[%clk 0:01:17.6]}
22... Bxc3 {[%clk 0:00:32.4]} 23. e4 {[%clk 0:01:07.5]} 23... b4 {[%clk
0:00:28.4]} 24. axb4 {[%clk 0:01:07.1]} 24... axb4 {[%clk 0:00:29.3]} 25. Kf2
{[%clk 0:01:07.1]} 25... Bxd2 {[%clk 0:00:19.7]} 26. Bxd2 {[%clk 0:01:04.9]}
26... b3 {[%clk 0:00:20.3]} 27. Bc3 {[%clk 0:00:58.2]} 27... Rc8 {[%clk
0:00:20.1]} 28. Rc1 {[%clk 0:00:55.8]} 28... Rxc3 {[%clk 0:00:16.7]} 29. Rxc3
{[%clk 0:00:54.6]} 29... b2 {[%clk 0:00:17]} 30. Rxd3 {[%clk 0:00:52]} 30...
b1=Q {[%clk 0:00:16.9]} 31. Re3 {[%clk 0:00:52.2]} 31... Qb6 {[%clk 0:00:16.2]}
32. f4 {[%clk 0:00:50.1]} 32... Qd4 {[%clk 0:00:16]} 33. Kf3 {[%clk 0:00:50.3]}
33... Kg7 {[%clk 0:00:16]} 34. Re2 {[%clk 0:00:50.3]} 34... Qd3+ {[%clk
0:00:16.2]} 35. Re3 {[%clk 0:00:51.2]} 35... Qf1+ {[%clk 0:00:16.3]} 36. Kg3
{[%clk 0:00:50.8]} 36... h5 {[%clk 0:00:16.4]} 37. Rf3 {[%clk 0:00:47.5]} 37...
Qe1+ {[%clk 0:00:16.4]} 38. Kh2 {[%clk 0:00:44.7]} 38... Qxe4 {[%clk 0:00:16.4]}
39. f5 {[%clk 0:00:44.6]} 39... g5 {[%clk 0:00:15.1]} 40. Kg3 {[%clk 0:00:43.6]}
40... Qe5+ {[%clk 0:00:14.4]} 41. Kf2 {[%clk 0:00:43.6]} 41... g4 {[%clk
0:00:14.7]} 42. hxg4 {[%clk 0:00:43.8]} 42... hxg4 {[%clk 0:00:15.6]} 43. Rg3
{[%clk 0:00:44.3]} 43... Qxf5+ {[%clk 0:00:15.8]} 0-1